fUST/lending_fUST_20250517
["ID","MTS","AMOUNT","RATE_DAILY","PERIOD"]
[361310472,1747446641708,-497.29,0.0001452,2]
[361310473,1747446641718,-450.0,0.0001452,2]
[361310474,1747446641726,-450.0,0.0001452,2]
[361310475,1747446641736,-450.0,0.0001452,2]
[361310476,1747446641745,-450.0,0.0001452,2]
[361310477,1747446641754,-450.0,0.0001452,2]
[361310478,1747446641762,-495.43,0.0001452,2]
[361310479,1747446641771,-552.74368205,0.0001452,2]
[361310480,1747446641781,-450.0,0.0001452,2]
[361310481,1747446641790,-802.82,0.0001452,2]
[361310482,1747446641799,-450.0,0.0001452,2]
[361310483,1747446641807,-600.0,0.0001455,2]
[361310484,1747446641818,-151.0,0.00014656,2]
[361310485,1747446641828,-384.364644,0.00014656,2]
[361310486,1747446641838,-384.364644,0.00014656,2]
[361310487,1747446641847,-1137.14,0.00014657,2]
[361310488,1747446641857,-450.0,0.00014657,2]
[361310489,1747446641867,-259.41702105,0.00014657,2]
[361310490,1747446641877,-450.0,0.00014657,2]
[361310491,1747446641886,-450.0,0.00014657,2]
[361310493,1747446641896,-450.0,0.00014657,2]
[361310495,1747446641905,-557.31,0.00014657,2]
[361310497,1747446641915,-2003.2338,0.00014657,2]
[361310499,1747446641924,-2003.2338,0.00014657,2]
[361310501,1747446641934,-604.2,0.00014657,2]
[361310503,1747446641943,-812.03,0.00014657,2]
[361310505,1747446641953,-151.0,0.00014657,2]
[361310507,1747446641962,-450.0,0.00014657,2]
[361310509,1747446641974,-450.0,0.00014657,2]
[361310511,1747446641983,-1119.19,0.00014657,2]
[361310513,1747446641993,-450.0,0.00014657,2]
[361310515,1747446642002,-450.0,0.00014657,2]
[361310517,1747446642012,-151.0,0.00014657,2]
[361310518,1747446642022,-450.0,0.00014657,2]
[361310520,1747446642031,-450.0,0.00014657,2]
[361310522,1747446642040,-450.0,0.00014657,2]
[361310524,1747446642050,-450.0,0.00014657,2]
[361310526,1747446642059,-252.80411,0.00014657,2]
[361310528,1747446642068,-450.0,0.00014657,2]
[361310530,1747446642079,-450.0,0.00014657,2]
[361310532,1747446642088,-450.0,0.00014657,2]
[361310534,1747446642098,-450.0,0.00014657,2]
[361310536,1747446642107,-450.0,0.00014657,2]
[361310538,1747446642116,-312.00399177,0.00014657,2]
[361310540,1747446642126,-450.0,0.00014657,2]
[361310542,1747446642136,-497.29,0.00014657,2]
[361310544,1747446642145,-151.0,0.00014657,2]
[361310546,1747446642154,-450.0,0.00014657,2]
[361310548,1747446642164,-494.04338444,0.00014657,2]
[361310550,1747446642173,-450.0,0.00014657,2]
[361310552,1747446642182,-251.01267188,0.00014657,2]
[361310554,1747446642191,-450.0,0.00014657,2]
[361310556,1747446642200,-495.43,0.00014657,2]
[361310558,1747446642209,-450.0,0.00014657,2]
[361310560,1747446642218,-802.82,0.00014657,2]
[361310562,1747446642227,-450.0,0.00014657,2]
[361310564,1747446642237,-601.18715362,0.000147,2]
[361310566,1747446642246,-328.34761997,0.00014765,2]
[361310568,1747446642255,-1137.14,0.00014794,2]
[361310570,1747446642265,-342.66316835,0.00014794,2]
[361310572,1747446642274,-450.0,0.00014794,2]
[361310574,1747446642283,-450.0,0.00014794,2]
[361310576,1747446642293,-450.0,0.00014794,2]
[361310578,1747446642303,-557.31,0.00014794,2]
[361310580,1747446642313,-604.2,0.00014794,2]
[361310582,1747446642322,-812.03,0.00014794,2]
[361310584,1747446642331,-450.0,0.00014794,2]
[361310586,1747446642342,-450.0,0.00014794,2]
[361310588,1747446642351,-1119.19,0.00014794,2]
[361310590,1747446642362,-450.0,0.00014794,2]
[361310592,1747446642371,-450.0,0.00014794,2]
[361310594,1747446642381,-450.0,0.00014794,2]
[361310596,1747446642390,-229.41596048,0.00014794,2]
[361310598,1747446642400,-450.0,0.00014794,2]
[361310600,1747446642409,-450.0,0.00014794,2]
[361310602,1747446642418,-450.0,0.00014794,2]
[361310604,1747446642428,-594.87069951,0.00014794,2]
[361310606,1747446642437,-450.0,0.00014794,2]
[361310608,1747446642446,-564.78950618,0.00014794,2]
[361310610,1747446642455,-285.41220448,0.00014794,2]
[361310612,1747446642465,-571.63979706,0.00014794,2]
[361310614,1747446642474,-497.29,0.00014794,2]
[361310616,1747446642482,-305.67660602,0.00014794,2]
[361310618,1747446642492,-450.0,0.00014794,2]
[361310619,1747446642501,-450.0,0.00014794,2]
[361310621,1747446642510,-359.1839121,0.00014794,2]
[361310640,1747446642661,154.19316242,0.0002647,120]
[361310749,1747446643642,-450.0,0.00013698,2]
[361310751,1747446643652,-450.0,0.00013835,2]
[361310753,1747446643661,-136.2460879,0.00014794,2]
[361310755,1747446643670,-237.6622608,0.00014794,2]
[361310757,1747446643679,-802.82,0.00014794,2]
[361310759,1747446643688,-450.0,0.00014794,2]
[361310761,1747446643698,-1000.0,0.0001486,2]
[361310763,1747446643707,-187.09036779,0.000149,3]
[361310765,1747446643716,-8087.88874577,0.000149,2]
[361310767,1747446643725,-3883.20358649,0.000149,2]
[361310769,1747446643735,-2393.61713689,0.000149,2]
[361310773,1747446643744,-165.4676669,0.000149,2]
[361310775,1747446643753,-160.6833173,0.00014924,2]
[361310777,1747446643762,-161.968,0.00014924,2]
[361310778,1747446643771,-1137.14,0.00014931,2]
[361310781,1747446643781,-450.0,0.00014931,2]
[361310782,1747446643790,-450.0,0.00014931,2]
[361310784,1747446643799,-557.31,0.00014931,2]
[361310786,1747446643808,-604.2,0.00014931,2]
[361310788,1747446643817,-450.0,0.00014931,2]
[361310790,1747446643827,-450.0,0.00014931,2]
[361310792,1747446643836,-1119.19,0.00014931,2]
[361310794,1747446643846,-450.0,0.00014931,2]
[361310796,1747446643855,-450.0,0.00014931,2]
[361310798,1747446643864,-450.0,0.00014931,2]
[361310800,1747446643873,-450.0,0.00014931,2]
[361310802,1747446643882,-450.0,0.00014931,2]
[361310804,1747446643892,-450.0,0.00014931,2]
[361310806,1747446643901,-450.0,0.00014931,2]
[361310808,1747446643910,-497.29,0.00014931,2]
[361310810,1747446643920,-450.0,0.00014931,2]
[361310812,1747446643928,-450.0,0.00014931,2]
[361310814,1747446643938,-495.43,0.00014931,2]
[361310816,1747446643947,-802.82,0.00014931,2]
[361310818,1747446643956,-410.0495338,0.00014931,2]
[361310820,1747446643966,-998.24360331,0.00014934,2]
[361310822,1747446643977,-197.42070249,0.00014936,2]
[361310824,1747446643986,-744.22167076,0.00014972,2]
[361310826,1747446643995,-647.42689088,0.00014973,2]
[361310828,1747446644004,-500.0,0.00014973,2]
[361310830,1747446644015,-500.0,0.00014973,2]
[361310832,1747446644024,-500.0,0.00014973,2]
[361310834,1747446644033,-500.0,0.00014973,2]
[361310836,1747446644043,-500.0,0.00014973,2]
[361310838,1747446644052,-500.0,0.00014973,2]
[361310840,1747446644061,-500.0,0.00014973,2]
[361310842,1747446644071,-500.0,0.00014973,2]
[361310844,1747446644080,-501.03520293,0.00014973,2]
[361310846,1747446644090,-500.0,0.00014973,2]
[361310847,1747446644098,-500.0,0.00014973,2]
[361310849,1747446644107,-500.0,0.00014973,2]
[361310851,1747446644117,-500.0,0.00014973,2]
[361310853,1747446644128,-500.0,0.00014973,2]
[361310855,1747446644137,-502.07544195,0.00014973,2]
[361310857,1747446644147,-500.0,0.00014973,2]
[361310859,1747446644156,-500.0,0.00014973,2]
[361310861,1747446644165,-500.0,0.00014973,2]
[361310863,1747446644174,-500.0,0.00014973,2]
[361310865,1747446644184,-151.0,0.00014973,2]
[361310867,1747446644193,-547.742,0.00014997,2]
[361310869,1747446644202,-2243.865,0.00014997,2]
[361310871,1747446644212,-709.093,0.00014997,2]
[361310873,1747446644220,-150.093,0.00014997,2]
[361310874,1747446644229,-151.0,0.00014997,2]
[361310875,1747446644238,-151.0,0.00014997,2]
[361310876,1747446644250,-607241.38489602,0.00015,5]
[361311050,1747446646230,-261.78790795,0.00013698,2]
[361311384,1747446849734,5081.557,0.00027397,120]
[361311385,1747446949138,6756.24489099,0.00026496,30]
[361311386,1747447005634,320.0,0.00026,80]
[361311387,1747447005655,320.0,0.00026,80]
[361311388,1747447021704,165660.03391395,0.00027397,120]
[361311389,1747447049461,118893.6852063,0.0002,120]
[361311485,1747447832663,-2771.8659037,0.00012828,2]
[361311486,1747447832672,-1064.70235287,0.00013599,2]
[361311487,1747447832683,-713.23890896,0.0001369,2]
[361311488,1747447832692,-178.0,0.00013697,2]
[361311489,1747447832701,-300.0,0.00013697,2]
[361311490,1747447832710,-450.0,0.00013698,2]
[361311491,1747447832718,-450.0,0.00013698,2]
[361311492,1747447832728,-450.0,0.00013698,2]
[361311493,1747447832737,-450.0,0.00013698,2]
[361311495,1747447832746,-518.0,0.00013698,2]
[361311496,1747447832755,-450.0,0.00013698,2]
[361311498,1747447832764,-450.0,0.00013698,2]
[361311500,1747447832773,-450.0,0.00013698,2]
[361311502,1747447832782,-450.0,0.00013698,2]
[361311504,1747447832791,-450.0,0.00013698,2]
[361311506,1747447832800,-450.0,0.00013698,2]
[361311508,1747447832810,-450.0,0.00013698,2]
[361311510,1747447832819,-450.0,0.00013698,2]
[361311512,1747447832828,-450.0,0.00013698,2]
[361311514,1747447832837,-450.0,0.00013698,2]
[361311516,1747447832846,-450.0,0.00013698,2]
[361311518,1747447832855,-450.0,0.00013698,2]
[361311520,1747447832864,-450.0,0.00013698,2]
[361311522,1747447832874,-380.0,0.00013698,2]
[361311524,1747447832883,-663.33,0.00013698,2]
[361311526,1747447832893,-450.0,0.00013698,2]
[361311529,1747447832905,-450.0,0.00013698,2]
[361311531,1747447832914,-450.0,0.00013698,2]
[361311533,1747447832923,-450.0,0.00013698,2]
[361311534,1747447832932,-450.0,0.00013698,2]
[361311535,1747447832941,-450.0,0.00013698,2]
[361311536,1747447832951,-450.0,0.00013698,2]
[361311537,1747447832960,-450.0,0.00013698,2]
[361311538,1747447832969,-450.0,0.00013698,2]
[361311539,1747447832978,-468.31,0.00013698,2]
[361311540,1747447832988,-450.0,0.00013698,2]
[361311541,1747447832997,-450.0,0.00013698,2]
[361311542,1747447833007,-496.61,0.00013698,2]
[361311543,1747447833016,-257.25933588,0.00013698,2]
[361311544,1747447833025,-450.0,0.00013698,2]
[361311545,1747447833035,-450.0,0.00013698,2]
[361311546,1747447833045,-450.0,0.00013698,2]
[361311547,1747447833055,-652.86,0.00013698,2]
[361311548,1747447833064,-450.0,0.00013698,2]
[361311549,1747447833073,-450.0,0.00013698,2]
[361311550,1747447833083,-450.0,0.00013698,2]
[361311551,1747447833092,-450.0,0.00013698,2]
[361311552,1747447833101,-450.0,0.00013698,2]
[361311553,1747447833111,-450.0,0.00013698,2]
[361311554,1747447833120,-450.0,0.00013698,2]
[361311555,1747447833129,-450.0,0.00013698,2]
[361311556,1747447833140,-450.0,0.00013698,2]
[361311557,1747447833150,-450.0,0.00013698,2]
[361311558,1747447833159,-450.0,0.00013698,2]
[361311559,1747447833168,-580.87625209,0.00013698,2]
[361311560,1747447833179,-450.0,0.00013698,2]
[361311561,1747447833188,-450.0,0.00013698,2]
[361311562,1747447833197,-450.0,0.00013698,2]
[361311563,1747447833206,-450.0,0.00013698,2]
[361311564,1747447833216,-450.0,0.00013698,2]
[361311565,1747447833225,-229.69645697,0.00013699,2]
[361311566,1747447833235,-443.384695,0.00013699,2]
[361311567,1747447833244,-773.810423,0.00013699,2]
[361311568,1747447833254,-413.57775345,0.00013835,2]
[361311569,1747447833263,-450.0,0.00013835,2]
[361311570,1747447833273,-207.76448839,0.00013835,2]
[361311571,1747447833282,-450.0,0.00013835,2]
[361311572,1747447833292,-573.04,0.00013835,2]
[361311573,1747447833302,-450.0,0.00013835,2]
[361311574,1747447833311,-450.0,0.00013835,2]
[361311575,1747447833320,-406.18,0.00013835,2]
[361311576,1747447833329,-236.52,0.00013835,2]
[361311577,1747447833339,-450.0,0.00013835,2]
[361311578,1747447833348,-663.33,0.00013835,2]
[361311579,1747447833357,-450.0,0.00013835,2]
[361311580,1747447833367,-450.0,0.00013835,2]
[361311581,1747447833377,-450.0,0.00013835,2]
[361311582,1747447833386,-450.0,0.00013835,2]
[361311583,1747447833395,-457.03577496,0.00013835,2]
[361311584,1747447833404,-450.0,0.00013835,2]
[361311585,1747447833413,-468.31,0.00013835,2]
[361311586,1747447833422,-450.0,0.00013835,2]
[361311587,1747447833431,-471.41891938,0.00013835,2]
[361311588,1747447833441,-496.61,0.00013835,2]
[361311589,1747447833451,-260.6237696,0.00013835,2]
[361311590,1747447833462,-450.0,0.00013835,2]
[361311591,1747447833472,-450.0,0.00013835,2]
[361311592,1747447833482,-652.86,0.00013835,2]
[361311593,1747447833494,-450.0,0.00013835,2]
[361311594,1747447833504,-450.0,0.00013835,2]
[361311595,1747447833514,-309.41537883,0.00013835,2]
[361311596,1747447833524,-450.0,0.00013835,2]
[361311597,1747447833534,-450.0,0.00013835,2]
[361311598,1747447833543,-450.0,0.00013835,2]
[361311599,1747447833553,-473.03081728,0.00013835,2]
[361311600,1747447833563,-405.67337354,0.00013835,2]
[361311601,1747447833573,-459.04183241,0.00013835,2]
[361311602,1747447833582,-450.0,0.00013835,2]
[361311603,1747447833592,-450.0,0.00013835,2]
[361311604,1747447833602,-450.0,0.00013835,2]
[361311605,1747447833611,-450.0,0.00013835,2]
[361311606,1747447833621,-450.0,0.00013835,2]
[361311607,1747447833630,-450.0,0.00013835,2]
[361311608,1747447833642,-450.0,0.00013835,2]
[361311609,1747447833652,-12634.18372584,0.00013937,2]
[361311610,1747447833662,-160.0,0.00013937,2]
[361311611,1747447833672,-160.0,0.00013937,2]
[361311612,1747447833681,-160.0,0.00013937,2]
[361311613,1747447833691,-160.0,0.00013937,2]
[361311614,1747447833700,-160.0,0.00013937,2]
[361311615,1747447833711,-422.46777649,0.00013937,2]
[361311616,1747447833721,-160.0,0.00013937,2]
[361311617,1747447833731,-160.0,0.00013937,2]
[361311618,1747447833741,-160.0,0.00013937,2]
[361311619,1747447833751,-496.23,0.00013972,2]
[361311620,1747447833761,-450.0,0.00013972,2]
[361311621,1747447833770,-663.33,0.00013972,2]
[361311622,1747447833780,-396.34,0.00013972,2]
[361311623,1747447833790,-450.0,0.00013972,2]
[361311624,1747447833799,-450.0,0.00013972,2]
[361311625,1747447833809,-468.39225602,0.00013972,2]
[361311626,1747447833824,-458.73069471,0.00013972,2]
[361311627,1747447833839,-468.31,0.00013972,2]
[361311628,1747447833851,-450.0,0.00013972,2]
[361311629,1747447833861,-496.61,0.00013972,2]
[361311630,1747447833871,-450.0,0.00013972,2]
[361311631,1747447833882,-455.77122255,0.00013972,2]
[361311632,1747447833894,-652.86,0.00013972,2]
[361311633,1747447833904,-458.98423419,0.00013972,2]
[361311634,1747447833914,-450.0,0.00013972,2]
[361311635,1747447833924,-450.0,0.00013972,2]
[361311636,1747447833934,-570.72,0.00013972,2]
[361311637,1747447833944,-450.0,0.00013972,2]
[361311638,1747447833954,-450.0,0.00013972,2]
[361311639,1747447833964,-450.0,0.00013972,2]
[361311640,1747447833973,-450.0,0.00013972,2]
[361311641,1747447833983,-228.82,0.00013972,2]
[361311642,1747447833993,-450.0,0.00013972,2]
[361311643,1747447834003,-450.0,0.00013972,2]
[361311644,1747447834013,-193.88,0.00014109,2]
[361311645,1747447834024,-663.33,0.00014109,2]
[361311646,1747447834034,-450.0,0.00014109,2]
[361311647,1747447834044,-318.53730721,0.00014109,2]
[361311648,1747447834053,-468.31,0.00014109,2]
[361311649,1747447834062,-450.0,0.00014109,2]
[361311650,1747447834072,-496.61,0.00014109,2]
[361311651,1747447834081,-450.0,0.00014109,2]
[361311652,1747447834091,-652.86,0.00014109,2]
[361311653,1747447834101,-450.0,0.00014109,2]
[361311654,1747447834111,-450.0,0.00014109,2]
[361311655,1747447834121,-450.0,0.00014109,2]
[361311656,1747447834131,-450.0,0.00014109,2]
[361311657,1747447834142,-450.0,0.00014109,2]
[361311658,1747447834152,-450.0,0.00014109,2]
[361311659,1747447834162,-450.0,0.00014109,2]
[361311660,1747447834171,-663.33,0.00014246,2]
[361311661,1747447834180,-450.0,0.00014246,2]
[361311662,1747447834190,-468.31,0.00014246,2]
[361311663,1747447834199,-450.0,0.00014246,2]
[361311664,1747447834208,-496.61,0.00014246,2]
[361311665,1747447834218,-450.0,0.00014246,2]
[361311666,1747447834227,-652.86,0.00014246,2]
[361311667,1747447834237,-459.33345772,0.00014246,2]
[361311668,1747447834248,-450.0,0.00014246,2]
[361311669,1747447834257,-450.0,0.00014246,2]
[361311670,1747447834268,-450.0,0.00014246,2]
[361311671,1747447834278,-450.0,0.00014246,2]
[361311672,1747447834288,-450.0,0.00014246,2]
[361311673,1747447834298,-450.0,0.00014246,2]
[361311674,1747447834308,-663.33,0.00014383,2]
[361311675,1747447834318,-450.0,0.00014383,2]
[361311676,1747447834327,-468.31,0.00014383,2]
[361311677,1747447834337,-450.0,0.00014383,2]
[361311678,1747447834347,-496.61,0.00014383,2]
[361311679,1747447834357,-450.0,0.00014383,2]
[361311680,1747447834366,-652.86,0.00014383,2]
[361311681,1747447834375,-450.0,0.00014383,2]
[361311682,1747447834386,-450.0,0.00014383,2]
[361311683,1747447834396,-563.63507841,0.00014383,2]
[361311684,1747447834405,-450.0,0.00014383,2]
[361311685,1747447834414,-450.0,0.00014383,2]
[361311686,1747447834425,-450.0,0.00014383,2]
[361311687,1747447834435,-663.33,0.0001452,2]
[361311688,1747447834445,-153.6,0.0001452,2]
[361311689,1747447834454,-468.31,0.0001452,2]
[361311690,1747447834464,-450.0,0.0001452,2]
[361311691,1747447834474,-496.61,0.0001452,2]
[361311692,1747447834488,-450.0,0.0001452,2]
[361311693,1747447834498,-652.86,0.0001452,2]
[361311694,1747447834509,-450.0,0.0001452,2]
[361311695,1747447834519,-450.0,0.0001452,2]
[361311696,1747447834530,-450.0,0.0001452,2]
[361311697,1747447834539,-450.0,0.0001452,2]
[361311698,1747447834549,-450.0,0.0001452,2]
[361311699,1747447834560,-328.34761998,0.00014614,2]
[361311700,1747447834569,-648.02762198,0.00014653,2]
[361311701,1747447834580,-500.0,0.00014653,2]
[361311702,1747447834589,-500.0,0.00014653,2]
[361311703,1747447834599,-500.0,0.00014653,2]
[361311704,1747447834608,-500.0,0.00014653,2]
[361311705,1747447834619,-663.33,0.00014657,2]
[361311706,1747447834630,-468.31,0.00014657,2]
[361311707,1747447834642,-450.0,0.00014657,2]
[361311708,1747447834652,-496.61,0.00014657,2]
[361311709,1747447834662,-450.0,0.00014657,2]
[361311710,1747447834672,-652.86,0.00014657,2]
[361311711,1747447834681,-566.3542577,0.00014657,2]
[361311712,1747447834691,-450.0,0.00014657,2]
[361311713,1747447834700,-450.0,0.00014657,2]
[361311714,1747447834710,-450.0,0.00014657,2]
[361311715,1747447834719,-450.0,0.00014657,2]
[361311716,1747447834729,-1064.70235283,0.00014785,2]
[361311717,1747447834738,-663.33,0.00014794,2]
[361311718,1747447834748,-468.31,0.00014794,2]
[361311719,1747447834758,-217.81834534,0.00014794,2]
[361311720,1747447834767,-496.61,0.00014794,2]
[361311721,1747447834777,-268.72146107,0.00014794,2]
[361311722,1747447834786,-652.86,0.00014794,2]
[361311723,1747447834796,-450.0,0.00014794,2]
[361311724,1747447834805,-450.0,0.00014794,2]
[361311725,1747447834815,-450.0,0.00014794,2]
[361311726,1747447834824,-450.0,0.00014794,2]
[361311727,1747447834834,-1066.84,0.000148,2]
[361311728,1747447834843,-3304.91893446,0.000149,2]
[361311729,1747447834853,-2313.82989881,0.000149,2]
[361311730,1747447834863,-3494.88322785,0.000149,2]
[361311731,1747447834872,-160.6833174,0.00014924,2]
[361311732,1747447834882,-193.223,0.00014924,2]
[361311733,1747447834892,-663.33,0.00014931,2]
[361311734,1747447834902,-468.31,0.00014931,2]
[361311735,1747447834912,-496.61,0.00014931,2]
[361311736,1747447834921,-652.86,0.00014931,2]
[361311737,1747447834931,-450.0,0.00014931,2]
[361311738,1747447834941,-450.0,0.00014931,2]
[361311739,1747447834951,-450.0,0.00014931,2]
[361311740,1747447834960,-450.0,0.00014931,2]
[361311741,1747447834970,-2612.6,0.00014972,2]
[361311742,1747447834979,-2612.6,0.00014972,2]
[361311743,1747447834989,-2612.6,0.00014972,2]
[361311744,1747447834998,-2612.6,0.00014972,2]
[361311745,1747447835008,-2612.6,0.00014972,2]
[361311746,1747447835017,-2612.6,0.00014972,2]
[361311747,1747447835026,-2612.6,0.00014972,2]
[361311748,1747447835036,-2612.6,0.00014972,2]
[361311749,1747447835045,-2612.6,0.00014972,2]
[361311750,1747447835054,-2612.6,0.00014972,2]
[361311751,1747447835064,-2612.6,0.00014972,2]
[361311752,1747447835073,-2612.6,0.00014972,2]
[361311753,1747447835082,-2612.6,0.00014972,2]
[361311754,1747447835091,-2612.6,0.00014972,2]
[361311755,1747447835101,-2612.6,0.00014972,2]
[361311756,1747447835111,-2612.6,0.00014972,2]
[361311757,1747447835120,-2612.6,0.00014972,2]
[361311758,1747447835129,-2612.6,0.00014972,2]
[361311759,1747447835141,-2612.6,0.00014972,2]
[361311760,1747447835151,-2612.6,0.00014972,2]
[361311761,1747447835161,-2612.6,0.00014972,2]
[361311762,1747447835171,-2612.6,0.00014972,2]
[361311763,1747447835181,-2612.6,0.00014972,2]
[361311764,1747447835191,-2612.6,0.00014972,2]
[361311765,1747447835201,-2612.6,0.00014972,2]
[361311766,1747447835211,-2612.6,0.00014972,2]
[361311767,1747447835221,-2612.4,0.00014972,2]
[361311768,1747447835231,-500.0,0.00014973,2]
[361311769,1747447835240,-501.03796719,0.00014973,2]
[361311770,1747447835250,-578.78362993,0.00014973,2]
[361311771,1747447835260,-500.0,0.00014973,2]
[361311772,1747447835269,-155.29825227,0.00014973,2]
[361311773,1747447835279,-500.0,0.00014973,2]
[361311774,1747447835289,-500.0,0.00014973,2]
[361311775,1747447835298,-500.0,0.00014973,2]
[361311776,1747447835308,-500.0,0.00014973,2]
[361311777,1747447835319,-500.0,0.00014973,2]
[361311778,1747447835328,-500.0,0.00014973,2]
[361311779,1747447835338,-500.0,0.00014973,2]
[361311780,1747447835348,-500.0,0.00014973,2]
[361311781,1747447835358,-500.0,0.00014973,2]
[361311782,1747447835368,-501.84990084,0.00014973,2]
[361311783,1747447835378,-500.0,0.00014973,2]
[361311784,1747447835390,-500.0,0.00014973,2]
[361311785,1747447835399,-509.10280484,0.00014973,2]
[361311786,1747447835409,-500.0,0.00014973,2]
[361311787,1747447835419,-500.0,0.00014973,2]
[361311788,1747447835429,-404.0,0.00014997,2]
[361311789,1747447835439,-187.09036778,0.00015,3]
[361311790,1747447835449,-5415.53907233,0.00015,2]
[361311791,1747447835458,-408277.87339395,0.00015,5]
[361311799,1747447838290,-300.0,0.00013697,2]
[361311800,1747447838300,-197.55914653,0.0001383,2]
[361311801,1747447838309,-500.0,0.0001383,2]
[361311802,1747447838319,-221.46711499,0.0001383,2]
[361311803,1747447838328,-500.0,0.0001383,2]
[361311804,1747447838337,-500.0,0.0001383,2]
[361311805,1747447838346,-500.0,0.0001383,2]
[361311806,1747447838355,-500.0,0.00014653,2]
[361311807,1747447838364,-345.94242868,0.00014653,2]
[361311808,1747447838373,-500.0,0.00014653,2]
[361311809,1747447838382,-500.0,0.00014653,2]
[361311810,1747447838391,-500.0,0.00014653,2]
[361311811,1747447838400,-500.0,0.00014653,2]
[361311813,1747447838409,-500.0,0.00014653,2]
[361311814,1747447838418,-500.0,0.00014653,2]
[361311816,1747447838428,-500.0,0.00014653,2]
[361311818,1747447838437,-500.0,0.00014653,2]
[361311819,1747447838447,-500.0,0.00014653,2]
[361311820,1747447838456,-500.0,0.00014653,2]
[361311821,1747447838465,-500.0,0.00014653,2]
[361311822,1747447838475,-500.0,0.00014653,2]
[361311823,1747447838486,-500.0,0.00014653,2]
[361311824,1747447838497,-593.47684341,0.00015,5]
[361311825,1747447838509,-3452.02384138,0.00015,5]
[361311826,1747447838520,-4244.37749815,0.00015,5]
[361311827,1747447838535,-1872.80271816,0.00015,5]
[361311877,1747447843587,-1099.96710003,0.00015,5]
[361311904,1747447843908,-40048.313273,0.00015,5]
[361312625,1747449038512,-300.0,0.00013697,2]
[361312627,1747449038522,-300.0,0.00013697,2]
[361312629,1747449038531,-450.0,0.00013698,2]
[361312631,1747449038540,-450.0,0.00013698,2]
[361312633,1747449038549,-450.0,0.00013698,2]
[361312634,1747449038559,-450.0,0.00013698,2]
[361312636,1747449038568,-450.0,0.00013698,2]
[361312638,1747449038577,-450.0,0.00013698,2]
[361312639,1747449038586,-450.0,0.00013698,2]
[361312641,1747449038595,-55.81781365,0.00013698,2]
[361312648,1747449038730,-394.18218635,0.00013698,2]
[361312649,1747449038739,-450.0,0.00013698,2]
[361312650,1747449038749,-450.0,0.00013835,2]
[361312651,1747449038758,-450.0,0.00013835,2]
[361312652,1747449038767,-450.0,0.00013835,2]
[361312653,1747449038777,-450.0,0.00013835,2]
[361312654,1747449038786,-450.0,0.00013835,2]
[361312655,1747449038796,-450.0,0.00013835,2]
[361312656,1747449038805,-450.0,0.00013835,2]
[361312657,1747449038814,-450.0,0.00013835,2]
[361312658,1747449038822,-450.0,0.00013835,2]
[361312659,1747449038831,-464.05452884,0.00013955,2]
[361312660,1747449038843,-534.35053795,0.00013955,2]
[361312661,1747449038852,-160.0,0.00013955,2]
[361312662,1747449038861,-44.95506098,0.00013955,2]